fUSD/lending_fUSD_20250607
["ID","MTS","AMOUNT","RATE_DAILY","PERIOD"]
[364890514,1749285050214,-190.71618356,0.00029354,22]
[364890515,1749285050224,-211.0,0.0002936,2]
[364890516,1749285050232,-151.0,0.00029363,7]
[364890517,1749285050241,-151.0,0.00029363,7]
[364890518,1749285050251,-151.0,0.00029363,7]
[364890519,1749285050260,-151.0,0.00029363,7]
[364890520,1749285050269,-151.0,0.00029363,7]
[364890521,1749285050279,-151.0,0.00029363,7]
[364890522,1749285050289,-151.0,0.00029363,7]
[364890523,1749285050299,-151.0,0.00029363,7]
[364890524,1749285050309,-151.0,0.00029363,7]
[364890525,1749285050318,-151.0,0.00029363,7]
[364890526,1749285050328,-151.0,0.00029363,7]
[364890527,1749285050337,-151.0,0.00029363,7]
[364890528,1749285050347,-182.368168,0.00029363,7]
[364890529,1749285050356,-182.368168,0.00029363,7]
[364890530,1749285050366,-182.368168,0.00029363,7]
[364890531,1749285050376,-182.368168,0.00029363,7]
[364890532,1749285050386,-283.26948,0.00029363,7]
[364890533,1749285050395,-283.26948,0.00029363,7]
[364890534,1749285050405,-326.016835,0.00029363,7]
[364890535,1749285050414,-283.26948,0.00029363,7]
[364890536,1749285050424,-283.26948,0.00029363,7]
[364890537,1749285050434,-326.016835,0.00029363,7]
[364890538,1749285050444,-166.818443,0.00029363,7]
[364890539,1749285050453,-166.818443,0.00029363,7]
[364890540,1749285050463,-294.99283,0.00029363,7]
[364890541,1749285050472,-294.99283,0.00029363,7]
[364890542,1749285050482,-151.0,0.00029363,7]
[364890543,1749285050491,-159.748696,0.00029369,7]
[364890544,1749285050501,-151.0,0.00029369,7]
[364890545,1749285050510,-326.016835,0.00029369,7]
[364890546,1749285050520,-326.016835,0.00029369,7]
[364890547,1749285050529,-166.818443,0.00029369,7]
[364890548,1749285050539,-166.818443,0.00029369,7]
[364890549,1749285050549,-294.99283,0.00029369,7]
[364890550,1749285050559,-294.99283,0.00029369,7]
[364890551,1749285050569,-700.0,0.0002937,2]
[364890552,1749285050579,-500.0,0.0002937,2]
[364890553,1749285050590,-200.0,0.00029379,2]
[364890554,1749285050600,-301.29,0.00029383,2]
[364890555,1749285050610,-211.0,0.0002939,2]
[364890556,1749285050620,-212.0,0.0002939,30]
[364890557,1749285050630,-206.0,0.0002939,2]
[364890558,1749285050639,-212.0,0.0002939,2]
[364890559,1749285050649,-390.55,0.00029421,2]
[364890560,1749285050659,-163.25,0.00029421,2]
[364890561,1749285050669,-163.25,0.00029421,2]
[364890562,1749285050679,-326.12,0.00029421,2]
[364890563,1749285050690,-163.25,0.00029421,2]
[364890564,1749285050701,-264.62,0.00029429,2]
[364890565,1749285050711,-1855.77153938,0.00029452,2]
[364890566,1749285050721,-151.0,0.00029474,7]
[364890567,1749285050731,-151.0,0.00029494,7]
[364890568,1749285050740,-1000.0,0.000295,2]
[364890569,1749285050750,-151.0,0.00029534,7]
[364890570,1749285050759,-151.0,0.00029534,7]
[364890571,1749285050768,-210.852787,0.00029534,7]
[364890572,1749285050779,-151.0,0.00029534,7]
[364890573,1749285050788,-182.368168,0.00029534,7]
[364890574,1749285050797,-182.368168,0.00029534,7]
[364890575,1749285050807,-283.26948,0.00029534,7]
[364890576,1749285050816,-283.26948,0.00029534,7]
[364890577,1749285050825,-1000.0,0.0002954,2]
[364890578,1749285050834,-302.0,0.00029547,2]
[364890579,1749285050844,-150.0,0.0002956,2]
[364890580,1749285050853,-150.0,0.00029649,2]
[364890581,1749285050863,-151.0,0.00029677,7]
[364890582,1749285050872,-150.0,0.00029685,2]
[364890583,1749285050882,-150.0,0.00029692,2]
[364890584,1749285050891,-151.0,0.00029698,7]
[364890585,1749285050900,-326.016835,0.00029698,7]
[364890586,1749285050910,-326.016836,0.00029698,7]
[364890587,1749285050920,-166.818443,0.00029698,7]
[364890588,1749285050929,-166.818443,0.00029698,7]
[364890589,1749285050940,-294.99283,0.00029698,7]
[364890590,1749285050949,-294.99283,0.00029698,7]
[364890591,1749285050958,-29200.42,0.000297,2]
[364890592,1749285050968,-387.0,0.000298,2]
[364890593,1749285050977,-208.8,0.000298,2]
[364890594,1749285050986,-209.4,0.000298,2]
[364890595,1749285050996,-159.0,0.000298,21]
[364890596,1749285051006,-200.0,0.000298,10]
[364890597,1749285051015,-1000.0,0.00029808,2]
[364890598,1749285051026,-2985.2313671,0.00029831,21]
[364890599,1749285051035,-151.0,0.00029848,7]
[364890600,1749285051046,-240.77297,0.00029848,7]
[364890601,1749285051055,-240.77297,0.00029848,7]
[364890602,1749285051065,-177.040968,0.0002985,7]
[364890603,1749285051076,-177.040968,0.0002985,7]
[364890604,1749285051086,-185.707612,0.0002985,7]
[364890605,1749285051097,-185.707612,0.0002985,7]
[364890606,1749285051106,-168.948959,0.0002985,7]
[364890607,1749285051115,-151.0,0.0002985,7]
[364890608,1749285051124,-151.0,0.0002985,7]
[364890609,1749285051134,-151.0,0.0002985,7]
[364890610,1749285051143,-347.722307,0.0002985,7]
[364890611,1749285051153,-347.722307,0.0002985,7]
[364890612,1749285051162,-155.562117,0.0002985,7]
[364890613,1749285051171,-151.0,0.0002985,7]
[364890614,1749285051181,-155.562117,0.0002985,7]
[364890615,1749285051191,-151.0,0.0002985,7]
[364890616,1749285051200,-151.0,0.0002985,7]
[364890617,1749285051209,-572.91785,0.0002985,7]
[364890618,1749285051219,-572.91785,0.0002985,7]
[364890619,1749285051228,-191.753818,0.0002985,7]
[364890620,1749285051237,-191.753818,0.0002985,7]
[364890621,1749285051247,-151.0,0.00029858,7]
[364890622,1749285051256,-151.0,0.00029858,7]
[364890623,1749285051266,-151.0,0.00029858,7]
[364890624,1749285051276,-151.0,0.00029858,7]
[364890625,1749285051285,-151.0,0.00029858,7]
[364890626,1749285051295,-177.040968,0.00029858,7]
[364890627,1749285051369,-177.040968,0.00029858,7]
[364890628,1749285051378,-151.0,0.00029858,7]
[364890629,1749285051389,-151.0,0.00029858,7]
[364890630,1749285051398,-185.707612,0.00029858,7]
[364890631,1749285051407,-185.707612,0.00029858,7]
[364890632,1749285051419,-151.0,0.00029858,7]
[364890633,1749285051437,-151.0,0.00029858,7]
[364890634,1749285051446,-151.0,0.00029858,7]
[364890635,1749285051456,-2026.87948,0.00029858,7]
[364890636,1749285051466,-2026.87948,0.00029858,7]
[364890637,1749285051475,-151.0,0.00029858,7]
[364890638,1749285051484,-180.098551,0.00029858,7]
[364890639,1749285051494,-151.0,0.00029858,7]
[364890640,1749285051503,-151.0,0.00029858,7]
[364890641,1749285051512,-347.722307,0.00029858,7]
[364890642,1749285051521,-347.722307,0.00029858,7]
[364890643,1749285051530,-155.562117,0.00029858,7]
[364890644,1749285051539,-151.0,0.00029858,7]
[364890645,1749285051548,-155.562117,0.00029858,7]
[364890646,1749285051558,-151.0,0.00029858,7]
[364890647,1749285051568,-151.0,0.00029858,7]
[364890648,1749285051579,-151.0,0.00029858,7]
[364890649,1749285051588,-151.0,0.00029858,7]
[364890650,1749285051597,-151.0,0.00029858,7]
[364890651,1749285051606,-151.0,0.00029858,7]
[364890652,1749285051616,-572.91785,0.00029858,7]
[364890653,1749285051625,-572.91785,0.00029858,7]
[364890654,1749285051635,-205.49714,0.00029858,7]
[364890655,1749285051644,-205.49714,0.00029858,7]
[364890656,1749285051654,-182.136622,0.00029858,7]
[364890657,1749285051664,-182.136622,0.00029858,7]
[364890658,1749285051673,-182.136622,0.00029858,7]
[364890659,1749285051684,-182.136622,0.00029858,7]
[364890660,1749285051698,-191.753818,0.00029858,7]
[364890661,1749285051707,-191.753818,0.00029858,7]
[364890662,1749285051717,-151.0,0.00029858,7]
[364890663,1749285051726,-151.0,0.00029858,7]
[364890664,1749285051736,-151.0,0.00029858,7]
[364890665,1749285051746,-151.0,0.00029858,7]
[364890666,1749285051755,-151.0,0.00029858,7]
[364890667,1749285051765,-151.0,0.00029858,7]
[364890668,1749285051776,-240.77297,0.00029858,7]
[364890669,1749285051789,-240.77297,0.00029858,7]
[364890670,1749285051799,-240.77297,0.00029858,7]
[364890671,1749285051808,-240.77297,0.00029858,7]
[364890672,1749285051818,-166235.7468283,0.00029858,2]
[364890673,1749285051827,-225.218056,0.00029858,7]
[364890674,1749285051837,-225.218056,0.00029858,7]
[364890675,1749285051847,-151.0,0.00029858,7]
[364890676,1749285051857,-225.218056,0.00029858,7]
[364890677,1749285051866,-151.0,0.00029858,7]
[364890678,1749285051875,-225.218056,0.00029858,7]
[364890679,1749285051884,-5785.3002652,0.00029858,2]
[364890680,1749285051896,-10000.0,0.00029858,7]
[364890681,1749285051906,-10000.0,0.00029858,7]
[364890682,1749285051916,-10000.0,0.00029858,7]
[364890683,1749285051925,-10000.0,0.00029858,7]
[364890684,1749285051935,-151.0,0.00029858,7]
[364890685,1749285051945,-151.0,0.00029858,7]
[364890686,1749285051960,-10000.0,0.00029858,7]
[364890687,1749285051970,-10000.0,0.00029858,7]
[364890688,1749285051980,-151.0,0.00029858,7]
[364890689,1749285051989,-151.0,0.00029858,7]
[364890690,1749285051999,-3493.6094715,0.00029858,2]
[364890691,1749285052008,-3493.6094715,0.00029858,2]
[364890692,1749285052017,-3493.6094715,0.00029858,2]
[364890693,1749285052026,-3493.6094715,0.00029858,2]
[364890694,1749285052035,-3493.6094715,0.00029858,2]
[364890695,1749285052044,-3493.6094715,0.00029858,2]
[364890696,1749285052054,-183.92822,0.00029858,7]
[364890697,1749285052063,-183.92822,0.00029858,7]
[364890698,1749285052072,-183.92822,0.00029858,7]
[364890699,1749285052081,-183.92822,0.00029858,7]
[364890700,1749285052090,-425.355225,0.00029858,28]
[364890701,1749285052098,-698.7218943,0.00029858,2]
[364890702,1749285052108,-698.7218943,0.00029858,2]
[364890703,1749285052118,-698.7218943,0.00029858,2]
[364890704,1749285052128,-698.7218943,0.00029858,2]
[364890705,1749285052137,-698.7218943,0.00029858,2]
[364890706,1749285052146,-698.7218943,0.00029858,2]
[364890707,1749285052155,-961.409907,0.00029858,7]
[364890708,1749285052165,-961.409907,0.00029858,7]
[364890709,1749285052175,-961.409907,0.00029858,7]
[364890710,1749285052185,-961.409907,0.00029858,7]
[364890711,1749285052195,-171.882811,0.00029858,7]
[364890712,1749285052204,-171.882811,0.00029858,7]
[364890713,1749285052214,-1446.6072886,0.00029858,2]
[364890714,1749285052225,-1446.6072886,0.00029858,2]
[364890715,1749285052234,-1446.6072886,0.00029858,2]
[364890716,1749285052244,-1446.6072886,0.00029858,2]
[364890717,1749285052255,-1446.6072886,0.00029858,2]
[364890718,1749285052265,-1446.6072886,0.00029858,2]
[364890719,1749285052274,-171.882811,0.00029858,7]
[364890720,1749285052284,-171.882811,0.00029858,7]
[364890721,1749285052295,-426.267147,0.00029858,7]
[364890722,1749285052304,-426.267147,0.00029858,7]
[364890723,1749285052313,-426.267147,0.00029858,7]
[364890724,1749285052323,-426.267147,0.00029858,7]
[364890725,1749285052332,-151.0,0.00029858,7]
[364890726,1749285052341,-151.0,0.00029858,7]
[364890727,1749285052354,-27894.2222082,0.00029858,2]
[364890728,1749285052363,-31826.7265671,0.00029858,2]
[364890729,1749285052374,-35759.230926,0.00029858,2]
[364890730,1749285052384,-39691.7352849,0.00029858,2]
[364890731,1749285052394,-43624.2396438,0.00029858,2]
[364890732,1749285052403,-47556.7440028,0.00029858,2]
[364890733,1749285052412,-151.0,0.00029858,7]
[364890734,1749285052422,-151.0,0.00029858,7]
[364890735,1749285052431,-41378.0271667,0.00029858,2]
[364890736,1749285052441,-57929.2380334,0.00029858,2]
[364890737,1749285052450,-74480.4489001,0.00029858,2]
[364890738,1749285052459,-91031.6597668,0.00029858,2]
[364890739,1749285052469,-107582.8706335,0.00029858,2]
[364890740,1749285052478,-124134.0815003,0.00029858,2]
[364890741,1749285052490,-318.993026,0.00029858,7]
[364890742,1749285052500,-318.993026,0.00029858,7]
[364890743,1749285052512,-318.993026,0.00029858,7]
[364890744,1749285052522,-318.993026,0.00029858,7]
[364890745,1749285052531,-1321.048037,0.00029858,7]
[364890746,1749285052540,-1321.048037,0.00029858,7]
[364890747,1749285052549,-242.735493,0.00029858,7]
[364890748,1749285052558,-242.735493,0.00029858,7]
[364890749,1749285052568,-1321.048037,0.00029858,7]
[364890750,1749285052579,-1321.048037,0.00029858,7]
[364890751,1749285052590,-211.0,0.0002986,2]
[364890752,1749285052599,-212.0,0.0002986,30]
[364890753,1749285052608,-206.0,0.0002986,2]
[364890754,1749285052618,-133266.8583679,0.0002986,2]
[364890755,1749285052628,-5785.3002652,0.0002986,2]
[364890756,1749285052638,-212.0,0.0002986,2]
[364890757,1749285052647,-318.993026,0.0002986,7]
[364890758,1749285052656,-318.993026,0.0002986,7]
[364890759,1749285052665,-1321.048037,0.0002986,7]
[364890760,1749285052675,-59420.8238496,0.00029862,2]
[364890761,1749285052685,-33842.5412179,0.00029862,2]
[364890762,1749285052699,-1470.829381,0.00029863,7]
[364890763,1749285052709,-1470.829381,0.00029863,7]
[364890764,1749285052718,-151.0,0.00029863,7]
[364890765,1749285052728,-151.0,0.00029863,7]
[364890766,1749285052738,-151.0,0.00029863,7]
[364890767,1749285052747,-151.0,0.00029863,7]
[364890768,1749285052757,-182.368168,0.00029863,7]
[364890769,1749285052766,-182.368168,0.00029863,7]
[364890770,1749285052777,-283.26948,0.00029863,7]
[364890771,1749285052787,-283.26948,0.00029863,7]
[364890772,1749285052797,-150.0,0.00029863,7]
[364890773,1749285052806,-150.0,0.00029863,7]
[364890774,1749285052816,-279.10775981,0.00029863,7]
[364890775,1749285052825,-218.84593086,0.00029863,7]
[364890776,1749285052835,-150.0,0.00029863,7]
[364890777,1749285052846,-150.0,0.00029863,7]
[364890778,1749285052856,-150.0,0.00029863,7]
[364890779,1749285052866,-150.0,0.00029863,7]
[364890780,1749285052877,-150.0,0.00029863,7]
[364890781,1749285052888,-151.89863202,0.00029863,7]
[364890782,1749285052898,-150.0,0.00029863,7]
[364890783,1749285052908,-150.0,0.00029863,7]
[364890784,1749285052920,-150.0,0.00029863,7]
[364890785,1749285052929,-151.0,0.00029863,2]
[364890786,1749285052939,-1800.62155246,0.00029863,2]
[364890787,1749285052948,-1000.0,0.00029866,7]
[364890788,1749285052960,-700.0,0.0002987,2]
[364890789,1749285052970,-500.0,0.0002987,2]
[364890790,1749285052980,-47636.1231994,0.00029879,2]
[364890791,1749285052991,-35851.4225493,0.00029879,2]
[364890792,1749285053000,-27130.6817778,0.00029879,2]
[364890793,1749285053010,-20418.8223377,0.00029879,2]
[364890794,1749285053020,-100297.9699075,0.00029879,2]
[364890795,1749285053029,-67329.081447,0.00029879,2]
[364890796,1749285053039,-5785.3002652,0.00029879,2]
[364890797,1749285053048,-5785.3002652,0.00029879,2]
[364890798,1749285053058,-183.92822,0.00029879,7]
[364890799,1749285053067,-183.92822,0.00029879,7]
[364890800,1749285053077,-318.993026,0.00029879,7]
[364890801,1749285053086,-318.993021,0.00029879,7]
[364890802,1749285053095,-1321.048037,0.00029879,7]
[364890803,1749285053104,-242.735493,0.00029879,7]
[364890804,1749285053113,-24066.7218991,0.0002988,2]
[364890805,1749285053123,-12282.021249,0.0002988,2]
[364890806,1749285053132,-497.3205989,0.0002988,2]
[364890807,1749285053142,-13706.9628976,0.0002988,2]
[364890808,1749285053151,-6995.1034575,0.0002988,2]
[364890809,1749285053160,-283.2440174,0.0002988,2]
[364890810,1749285053170,-34360.1929866,0.0002988,2]
[364890811,1749285053179,-1391.3045262,0.0002988,2]
[364890812,1749285053189,-5785.3002652,0.0002988,2]
[364890813,1749285053198,-5785.3002652,0.0002988,2]
[364890814,1749285053207,-279.10775981,0.00029883,7]
[364890815,1749285053216,-218.84593086,0.00029883,7]
[364890816,1749285053225,-150.0,0.00029889,7]
[364890817,1749285053235,-150.0,0.00029891,7]
[364890818,1749285053244,-151.0,0.00029899,7]
[364890819,1749285053254,-151.0,0.00029899,7]
[364890820,1749285053262,-151.0,0.00029899,7]
[364890821,1749285053271,-151.0,0.00029899,7]
[364890822,1749285053280,-151.0,0.00029899,7]
[364890823,1749285053290,-151.0,0.00029899,7]
[364890824,1749285053299,-204.64656648,0.00029899,2]
[364890825,1749285053308,-76242.51736996,0.000299,2]
[364890826,1749285053317,-46628.8074431,0.000299,2]
[364890827,1749285053325,-197.65281716,0.000299,2]
[364890828,1749285053335,-160.84280804,0.000299,2]
[364890829,1749285053344,-151.0,0.000299,7]
[364890830,1749285053353,-151.0,0.000299,7]
[364890831,1749285053362,-151.0,0.000299,7]
[364890832,1749285053371,-151.0,0.000299,7]
[364890833,1749285053380,-151.0,0.000299,7]
[364890834,1749285053390,-151.0,0.000299,7]
[364890835,1749285053399,-151.0,0.000299,7]
[364890836,1749285053408,-151.0,0.000299,7]
[364890837,1749285053417,-151.0,0.000299,7]
[364890838,1749285053426,-2026.87948,0.000299,7]
[364890839,1749285053435,-2026.87948,0.000299,7]
[364890840,1749285053444,-183.691151,0.000299,7]
[364890841,1749285053453,-151.0,0.000299,7]
[364890842,1749285053463,-205.49714,0.000299,7]
[364890843,1749285053471,-205.49714,0.000299,7]
[364890844,1749285053481,-159.081604,0.000299,7]
[364890845,1749285053491,-240.77297,0.000299,7]
[364890846,1749285053501,-1538.5606,0.000299,2]
[364890847,1749285053510,-1538.5606,0.000299,2]
[364890848,1749285053519,-240.77297,0.000299,7]
[364890849,1749285053529,-151.0,0.000299,7]
[364890850,1749285053539,-200.0,0.000299,10]
[364890851,1749285053548,-183.92822,0.000299,7]
[364890852,1749285053560,-183.928212,0.000299,7]
[364890853,1749285053569,-2022.7066,0.000299,2]
[364890854,1749285053580,-2022.7066,0.000299,2]
[364890855,1749285053592,-426.267147,0.000299,7]
[364890856,1749285053601,-426.267147,0.000299,7]
[364890857,1749285053613,-600.0,0.000299,10]
[364890858,1749285053623,-151.0,0.000299,7]
[364890859,1749285053632,-151.0,0.000299,7]
[364890860,1749285053642,-2635.0218,0.000299,2]
[364890861,1749285053652,-2635.0218,0.000299,2]
[364890862,1749285053662,-242.735493,0.000299,7]
[364890863,1749285053672,-279.10775981,0.00029902,7]
[364890864,1749285053681,-218.84593086,0.00029902,7]
[364890865,1749285053692,-150.0,0.00029903,7]
[364890866,1749285053702,-150.0,0.00029913,7]
[364890867,1749285053712,-150.0,0.00029916,7]
[364890868,1749285053722,-150.0,0.00029919,7]
[364890869,1749285053732,-279.10775981,0.00029922,7]
[364890870,1749285053742,-218.84593086,0.00029922,7]
[364890871,1749285053752,-279.10775981,0.00029942,7]
[364890872,1749285053762,-218.84593086,0.00029942,7]
[364890873,1749285053773,-150.0,0.00029942,7]
[364890874,1749285053784,-150.0,0.00029942,7]
[364890875,1749285053794,-150.0,0.00029944,7]
[364890876,1749285053804,-150.0,0.00029946,7]
[364890877,1749285053814,-279.10775981,0.00029961,7]
[364890878,1749285053824,-218.84593086,0.00029961,7]
[364890879,1749285053833,-150.0,0.00029963,7]
[364890880,1749285053843,-150.0,0.00029968,7]
[364890881,1749285053852,-150.0,0.00029974,7]
[364890882,1749285053861,-185.707612,0.00029978,7]
[364890883,1749285053871,-185.707612,0.00029978,7]
[364890884,1749285053880,-151.0,0.00029978,7]
[364890885,1749285053890,-347.722307,0.00029978,7]
[364890886,1749285053899,-347.722307,0.00029978,7]
[364890887,1749285053909,-151.0,0.00029978,7]
[364890888,1749285053919,-151.0,0.00029978,7]
[364890889,1749285053929,-215.742022,0.00029978,7]
[364890890,1749285053939,-572.91785,0.00029978,7]
[364890891,1749285053950,-572.91785,0.00029978,7]
[364890892,1749285053959,-182.136622,0.00029978,7]
[364890893,1749285053970,-182.136622,0.00029978,7]
[364890894,1749285053979,-182.136622,0.00029978,7]
[364890895,1749285053989,-182.136622,0.00029978,7]
[364890896,1749285053999,-191.753818,0.00029978,7]
[364890897,1749285054009,-191.753818,0.00029978,7]
[364890898,1749285054018,-151.0,0.00029978,7]
[364890899,1749285054027,-151.0,0.00029978,7]
[364890900,1749285054037,-293.043261,0.00029978,7]
[364890901,1749285054046,-240.77297,0.00029978,7]
[364890902,1749285054055,-240.77297,0.00029978,7]
[364890903,1749285054064,-225.218056,0.00029978,7]
[364890904,1749285054073,-225.218056,0.00029978,7]
[364890905,1749285054082,-151.0,0.00029978,7]
[364890906,1749285054091,-225.218056,0.00029978,7]
[364890907,1749285054099,-151.0,0.00029978,7]
[364890908,1749285054109,-225.218056,0.00029978,7]
[364890909,1749285054117,-10000.0,0.00029978,7]
[364890910,1749285054127,-10000.0,0.00029978,7]
[364890911,1749285054136,-10000.0,0.00029978,7]
[364890912,1749285054145,-10000.0,0.00029978,7]
[364890913,1749285054154,-151.0,0.00029978,7]
[364890914,1749285054163,-10000.0,0.00029978,7]
[364890915,1749285054173,-10000.0,0.00029978,7]
[364890916,1749285054182,-249.166087,0.00029978,7]
[364890917,1749285054191,-961.409907,0.00029978,7]
[364890918,1749285054199,-961.409907,0.00029978,7]
[364890919,1749285054208,-961.409907,0.00029978,7]
[364890920,1749285054217,-961.409907,0.00029978,7]
[364890921,1749285054226,-171.882811,0.00029978,7]
[364890922,1749285054235,-171.882811,0.00029978,7]
[364890923,1749285054244,-171.882811,0.00029978,7]
[364890924,1749285054254,-171.882811,0.00029978,7]
[364890925,1749285054263,-426.267147,0.00029978,7]
[364890926,1749285054273,-426.267147,0.00029978,7]
[364890927,1749285054282,-151.0,0.00029978,7]
[364890928,1749285054291,-155.208437,0.00029978,7]
[364890929,1749285054301,-151.0,0.00029979,7]
[364890930,1749285054310,-151.0,0.00029979,7]
[364890931,1749285054320,-151.0,0.00029979,7]
[364890932,1749285054329,-667.336566,0.00029979,7]
[364890933,1749285054338,-667.336566,0.00029979,7]
[364890934,1749285054347,-151.949847,0.00029979,7]
[364890935,1749285054356,-151.0,0.00029979,7]
[364890936,1749285054365,-151.0,0.00029979,7]
[364890937,1749285054374,-412.452198,0.00029979,7]
[364890938,1749285054384,-412.452198,0.00029979,7]
[364890939,1749285054393,-977.448713,0.00029979,7]
[364890940,1749285054402,-977.448713,0.00029979,7]
[364890941,1749285054411,-151.0,0.00029979,7]
[364890942,1749285054420,-151.0,0.00029979,7]
[364890943,1749285054429,-151.0,0.00029979,7]
[364890944,1749285054438,-151.0,0.00029979,7]
[364890945,1749285054448,-151.0,0.00029979,7]
[364890946,1749285054457,-196.779148,0.00029979,7]
[364890947,1749285054466,-196.779148,0.00029979,7]
[364890948,1749285054475,-151.0,0.00029979,7]
[364890949,1749285054485,-151.0,0.00029979,7]
[364890950,1749285054494,-151.0,0.00029979,7]
[364890951,1749285054503,-177.040968,0.00029979,7]
[364890952,1749285054512,-177.040968,0.00029979,7]
[364890953,1749285054521,-1642.080816,0.00029979,7]
[364890954,1749285054531,-177.040968,0.00029979,7]
[364890955,1749285054541,-177.040968,0.00029979,7]
[364890956,1749285054550,-151.0,0.00029979,7]
[364890957,1749285054560,-1642.080816,0.00029979,7]
[364890958,1749285054569,-151.0,0.00029979,7]
[364890959,1749285054578,-185.707612,0.00029979,7]
[364890960,1749285054588,-185.707612,0.00029979,7]
[364890961,1749285054598,-151.0,0.00029979,7]
[364890962,1749285054607,-463.505806,0.00029979,7]
[364890963,1749285054616,-151.0,0.00029979,7]
[364890964,1749285054626,-151.0,0.00029979,7]
[364890965,1749285054635,-151.0,0.00029979,7]
[364890966,1749285054645,-463.505806,0.00029979,7]
[364890967,1749285054654,-2026.87948,0.00029979,7]
[364890968,1749285054665,-2026.87948,0.00029979,7]
[364890969,1749285054675,-151.0,0.00029979,7]
[364890970,1749285054686,-151.0,0.00029979,7]
[364890971,1749285054699,-151.0,0.00029979,7]
[364890972,1749285054709,-347.722307,0.00029979,7]
[364890973,1749285054719,-347.722307,0.00029979,7]
[364890974,1749285054729,-155.562117,0.00029979,7]
[364890975,1749285054738,-155.562117,0.00029979,7]
[364890976,1749285054748,-151.0,0.00029979,7]
[364890977,1749285054757,-155.562117,0.00029979,7]
[364890978,1749285054768,-155.562117,0.00029979,7]
[364890979,1749285054777,-151.0,0.00029979,7]
[364890980,1749285054787,-572.91785,0.00029979,7]
[364890981,1749285054797,-572.91785,0.00029979,7]
[364890982,1749285054807,-205.49714,0.00029979,7]
[364890983,1749285054818,-205.49714,0.00029979,7]
[364890984,1749285054827,-182.136622,0.00029979,7]
[364890985,1749285054838,-182.136622,0.00029979,7]
[364890986,1749285054848,-182.136622,0.00029979,7]
[364890987,1749285054858,-182.136622,0.00029979,7]
[364890988,1749285054868,-182.136622,0.00029979,7]
[364890989,1749285054878,-182.136624,0.00029979,7]
[364890990,1749285054889,-191.753818,0.00029979,7]
[364890991,1749285054899,-191.753818,0.00029979,7]
[364890992,1749285054909,-151.0,0.00029979,7]
[364890993,1749285054919,-151.0,0.00029979,7]
[364890994,1749285054930,-151.0,0.00029979,7]
[364890995,1749285054940,-240.77297,0.00029979,7]
[364890996,1749285054951,-240.77297,0.00029979,7]
[364890997,1749285054961,-240.77297,0.00029979,7]
[364890998,1749285054972,-240.77297,0.00029979,7]
[364890999,1749285054981,-240.77297,0.00029979,7]
[364891000,1749285054991,-240.772968,0.00029979,7]
[364891001,1749285055001,-225.218056,0.00029979,7]
[364891002,1749285055011,-225.218056,0.00029979,7]
[364891003,1749285055021,-225.218056,0.00029979,7]
[364891004,1749285055030,-151.0,0.00029979,7]
[364891005,1749285055041,-225.218056,0.00029979,7]
[364891006,1749285055050,-151.0,0.00029979,7]
[364891007,1749285055061,-225.218056,0.00029979,7]
[364891008,1749285055071,-151.0,0.00029979,7]
[364891009,1749285055081,-225.218062,0.00029979,7]
[364891010,1749285055092,-10000.0,0.00029979,7]
[364891011,1749285055102,-10000.0,0.00029979,7]
[364891012,1749285055113,-10000.0,0.00029979,7]
[364891013,1749285055123,-10000.0,0.00029979,7]